bitfinex-derivatives/quotes_SOLF0:USTF0_20241120
["timestamp","ask_amount","ask_price","bid_price","bid_amount"]
[1732121074967,2.1342,234.03,233.94,2.135]
[1732121075160,3.58,234.04,233.9,18.52706147]
[1732121076166,3.58,234.04,233.85,5.85064371]
[1732121076167,22.10706147,234.04,233.86,18.52706147]
[1732121076560,22.10706147,234.04,233.82,18.52706147]
[1732121076761,12.83,233.98,233.8,5.85064371]
[1732121076963,18.52706147,233.84,233.68,6.06679371]
[1732121077169,3.58,233.83,233.68,0.21615]
[1732121077565,2.1362,233.81,233.68,0.21615]
[1732121078271,18.52706147,233.84,233.75,2.1367]
[1732121078272,3.58,233.84,233.75,2.1367]
[1732121079876,3.58,233.84,233.73,2.1369]
[1732121080073,18.52706147,233.92,233.69,27.95770518]
[1732121080369,3.58,233.91,233.73,18.52706147]
[1732121080570,3.58,233.91,233.74,6.2852]
[1732121081376,2.1356,233.88,233.79,2.1363]
[1732121081674,2.1356,233.88,233.74,6.2852]
[1732121081875,2.1354,233.9,233.8,2.1362]
[1732121082073,2.1354,233.9,233.77,18.52706147]
[1732121082275,3.58,233.93,233.77,18.52706147]
[1732121082579,3.58,233.93,233.86,2.1357]
[1732121082880,22.10706147,234.0,233.81,18.52706147]
[1732121083082,2.1351,233.93,233.85,2.1358]
[1732121083277,22.10706147,234.0,233.81,18.52706147]
[1732121084373,2.135,233.94,233.87,2.1356]
[1732121084776,22.10706147,234.0,233.81,18.52706147]
[1732121084977,22.10706147,234.0,233.86,2.1357]
[1732121085975,22.10706147,234.0,233.77,18.52706147]
[1732121086172,18.52706147,233.92,233.74,6.2852]
[1732121086372,12.01761018,233.91,233.74,6.2852]
[1732121086575,2.136,233.84,233.77,2.1365]
[1732121086776,12.01761018,233.91,233.74,6.2852]
[1732121086974,18.52706147,233.88,233.74,6.2852]
[1732121087179,18.52706147,233.88,233.73,2.1369]
[1732121087378,18.52706147,233.88,233.69,20.52936147]
[1732121087679,2.1365,233.78,233.69,2.0023]
[1732121088181,3.58,233.81,233.7,2.1371]
[1732121088481,3.58,233.81,233.69,2.0023]
[1732121088683,3.58,233.81,233.73,2.1369]
[1732121089280,5.7162,233.81,233.74,2.1368]
[1732121089476,3.58,233.81,233.74,2.1368]
[1732121090081,18.52706147,233.88,233.69,20.52936147]
[1732121090281,3.52,233.87,233.69,20.52936147]
[1732121090484,2.136,233.84,233.73,18.52706147]
[1732121092087,2.1358,233.85,233.78,2.1364]
[1732121092291,3.52,233.87,233.78,2.1364]
[1732121093288,2.1359,233.84,233.78,2.1364]
[1732121093489,3.52,233.87,233.78,2.1364]
[1732121093683,3.52,233.87,233.77,2.1366]
[1732121094389,3.52,233.87,233.78,2.1364]
[1732121094592,3.52,233.87,233.73,18.52706147]
[1732121094992,2.1358,233.86,233.77,2.1365]
[1732121095185,3.52,233.87,233.73,18.52706147]
[1732121095793,2.1358,233.86,233.73,18.52706147]
[1732121096394,3.52,233.87,233.74,2.17081016]
[1732121096594,6.335,233.91,233.74,2.17081016]
[1732121096595,9.855,233.91,233.74,2.17081016]
[1732121096795,9.855,233.91,233.73,18.52706147]
[1732121096995,2.1357,233.88,233.81,2.1362]
[1732121097596,6.335,233.91,233.81,2.1362]
[1732121097987,2.1358,233.88,233.81,2.1364]
[1732121098592,2.1358,233.88,233.82,2.1363]
[1732121098889,20.66820304,233.96,233.82,2.1363]
[1732121099105,3.52,233.95,233.81,18.52706147]
[1732121099393,3.52,233.97,233.86,2.1359]
[1732121100191,3.52,233.97,233.81,18.52706147]
[1732121100395,18.52706147,233.96,233.8,2.0421]
[1732121100894,18.52706147,233.88,233.72,5.85064371]
[1732121101116,3.52,233.87,233.7,6.3457]
[1732121101396,3.52,233.87,233.7,4.2306]
[1732121101601,6.3626,233.86,233.7,4.2306]
[1732121102097,18.52706147,233.84,233.7,4.2306]
[1732121102494,2.1365,233.78,233.71,2.137]
[1732121102692,2.1365,233.78,233.7,4.2306]
[1732121102888,6.3626,233.86,233.7,4.2306]
[1732121103093,2.1363,233.81,233.74,2.1368]
[1732121103297,6.3626,233.86,233.74,2.1368]
[1732121103597,2.1365,233.78,233.72,2.1369]
[1732121103793,6.3626,233.86,233.7,4.2306]
[1732121104299,6.3626,233.86,233.68,0.21615]
[1732121104300,18.52706147,233.84,233.68,0.21615]
[1732121104792,18.52706147,233.8,233.68,0.21615]
[1732121104995,3.52,233.79,233.68,0.21615]
[1732121105391,2.1367,233.76,233.68,0.21615]
[1732121105594,3.52,233.79,233.6,6.2747]
[1732121106189,2.1372,233.7,233.6,6.2747]
[1732121106397,18.52706147,233.76,233.6,6.2747]
[1732121106795,18.52706147,233.72,233.55,5.85064371]
[1732121107093,9.7289,233.71,233.54,5.85064371]
[1732121107288,2.1378,233.64,233.53,5.85064371]
[1732121107492,9.7289,233.71,233.53,10.5600251]
[1732121107693,9.7289,233.71,233.52,28.60440518]
[1732121107894,18.52706147,233.68,233.52,4.2267]
[1732121108298,2.1378,233.64,233.54,2.1387]
[1732121108499,3.52,233.63,233.54,2.1387]
[1732121108698,3.52,233.63,233.62,0.16679]
[1732121109000,5.6578,233.63,233.62,0.16679]
[1732121109800,3.52,233.63,233.44,22.04706147]
[1732121109996,3.52,233.63,233.48,18.52706147]
[1732121110195,18.52706147,233.68,233.48,18.52706147]
[1732121110398,3.52,233.67,233.48,18.52706147]
[1732121111092,2.1378,233.63,233.56,2.1384]
[1732121111293,17.1003,233.93,233.61,18.52706147]
[1732121111600,2.137,233.73,233.66,2.1375]
[1732121111898,3.52,233.79,233.61,18.52706147]
[1732121112103,3.52,233.79,233.65,18.52706147]
[1732121112395,3.52,233.79,233.66,3.52]
[1732121112599,2.1466,233.82,233.69,18.52706147]
[1732121113094,2.1363,233.8,233.73,2.1369]
[1732121113295,2.1466,233.82,233.66,3.52]
[1732121114301,18.52706147,233.81,233.61,18.52706147]
[1732121114802,2.1466,233.82,233.71,2.1371]
[1732121115206,2.1466,233.82,233.65,18.52706147]
[1732121115395,20.71115356,233.81,233.61,18.52706147]
[1732121115600,2.1466,233.82,233.58,6.3659]
[1732121115601,18.52706147,233.77,233.58,6.3659]
[1732121115901,2.1466,233.82,233.58,6.3659]
[1732121115902,18.52706147,233.73,233.58,6.3659]
[1732121116495,2.1377,233.65,233.58,8.5041]
[1732121116905,3.52,233.68,233.53,18.52706147]
[1732121117400,3.52,233.68,233.5,4.1493]
[1732121117603,2.1724,233.67,233.5,4.1493]
[1732121117905,18.52706147,233.65,233.5,4.1493]
[1732121118203,2.1724,233.67,233.5,4.1493]
[1732121119598,2.1378,233.64,233.5,4.1493]
[1732121120008,2.1378,233.63,233.55,2.1385]
[1732121120300,2.1724,233.67,233.5,4.1493]
[1732121120500,2.1375,233.67,233.53,18.52706147]
[1732121120700,3.52,233.69,233.53,22.04706147]
[1732121121209,2.1372,233.7,233.57,18.52706147]
[1732121121400,3.52,233.72,233.61,18.52706147]
[1732121121903,3.52,233.72,233.66,2.1376]
[1732121122293,2.137,233.73,233.66,2.1376]
[1732121122496,2.1339,233.75,233.61,18.52706147]
[1732121122497,3.52,233.75,233.61,18.52706147]
[1732121122700,20.51636147,233.85,233.65,18.52706147]
[1732121122898,3.52,233.84,233.66,5.5715]
[1732121123099,2.1365,233.78,233.71,2.1371]
[1732121123301,3.52,233.84,233.66,2.0515]
[1732121123599,2.1367,233.76,233.66,2.1376]
[1732121123804,18.52706147,233.81,233.66,2.1376]
[1732121124006,18.52706147,233.81,233.63,2.0218]
[1732121124810,18.52706147,233.77,233.62,2.0337]
[1732121125009,3.52,233.76,233.62,2.0337]
[1732121125605,2.1372,233.7,233.64,2.1377]
[1732121125807,3.52,233.76,233.57,18.52706147]
[1732121126103,2.1373,233.7,233.62,2.1379]
[1732121126303,2.1373,233.7,233.57,18.52706147]
[1732121126505,3.52,233.76,233.57,18.52706147]
[1732121126707,2.1372,233.71,233.62,2.1379]
[1732121127008,3.52,233.76,233.57,18.52706147]
[1732121127410,3.52,233.79,233.61,18.52706147]
[1732121127605,18.52706147,233.81,233.61,18.52706147]
[1732121127803,2.1367,233.76,233.67,2.1375]
[1732121128004,22.04706147,233.81,233.61,18.52706147]
[1732121128402,18.52706147,233.77,233.56,29.1772443]
[1732121128605,18.52706147,233.77,233.56,24.09856147]
[1732121128806,2.1371,233.71,233.63,2.1378]
[1732121129010,3.52,233.73,233.56,24.09856147]
[1732121129406,2.1374,233.68,233.62,2.1379]
[1732121129813,22.04706147,233.73,233.56,2.0515]
[1732121130010,6.1186,233.72,233.58,2.1382]
[1732121130209,6.1186,233.72,233.56,2.0515]
[1732121130607,6.1186,233.72,233.57,18.52706147]
[1732121131506,4.092,233.72,233.66,2.1376]
[1732121131705,2.15638066,233.79,233.57,18.52706147]
[1732121131706,2.1238,233.78,233.61,18.52706147]
[1732121132116,2.1366,233.77,233.69,2.1373]
[1732121132317,3.52,233.8,233.61,24.37770518]
[1732121132512,3.52,233.8,233.62,4.7032922]
[1732121132815,3.52,233.8,233.65,18.52706147]
[1732121133108,2.1508,233.83,233.66,2.0894]
[1732121133314,2.1364,233.79,233.71,2.1371]
[1732121133515,2.11710166,233.79,233.65,5.85064371]
[1732121133814,5.6708,233.83,233.57,23.6057443]
[1732121133815,18.52706147,233.77,233.57,23.6057443]
[1732121134114,2.1238,233.76,233.58,4.70641532]
[1732121134414,3.52,233.75,233.57,5.85064371]
[1732121134912,3.52,233.75,233.57,10.56256809]
[1732121135117,18.52706147,233.73,233.56,2.0515]
[1732121135509,1.9842,233.72,233.57,2.1383]
[1732121135714,4.0538,233.72,233.56,2.0515]
[1732121136312,2.1375,233.68,233.56,2.0515]
[1732121136511,4.0538,233.72,233.56,2.0515]
[1732121136913,2.1376,233.67,233.61,2.138]
[1732121137215,4.0538,233.72,233.56,2.0515]
[1732121138214,4.0538,233.72,233.59,2.1382]
[1732121138712,2.1377,233.65,233.6,2.1381]
[1732121139312,4.0538,233.72,233.61,2.138]
[1732121139913,2.1376,233.66,233.61,2.138]
[1732121142410,4.0538,233.72,233.56,2.0515]
[1732121143318,2.1377,233.65,233.59,2.1382]
[1732121143917,4.0538,233.72,233.56,2.0515]
[1732121144418,2.1374,233.68,233.56,2.0515]
[1732121145021,3.52,233.75,233.56,2.0515]
[1732121145022,3.52,233.75,233.58,18.52706147]
[1732121145324,2.1238,233.76,233.58,18.52706147]
[1732121145522,3.52,233.75,233.66,2.1376]
[1732121145717,2.1371,233.72,233.66,2.1376]
[1732121145925,3.52,233.75,233.58,18.52706147]
[1732121146125,3.52,233.75,233.64,2.1377]
[1732121146322,2.1371,233.71,233.56,2.0515]
[1732121146722,2.1371,233.71,233.57,4.7223509]
[1732121147016,2.1371,233.71,233.66,2.1376]
[1732121147223,2.1238,233.76,233.66,2.1376]
[1732121147422,2.137,233.72,233.66,2.1376]
[1732121147817,4.2413,233.79,233.61,18.52706147]
[1732121148022,2.1368,233.75,233.69,2.1372]
[1732121148220,7.7613,233.79,233.61,18.52706147]
[1732121148421,2.1367,233.75,233.61,18.52706147]
[1732121148727,18.52706147,233.77,233.59,3.52]
[1732121148927,2.1371,233.72,233.65,2.1376]
[1732121149126,18.52706147,233.77,233.65,2.1376]
[1732121149329,18.52706147,233.77,233.57,3.52]
[1732121149830,18.52706147,233.69,233.56,2.0515]
[1732121150028,22.02706147,233.69,233.54,2.0894]
[1732121150328,2.1378,233.64,233.58,2.1382]
[1732121150924,22.02706147,233.69,233.56,2.1384]
[1732121151119,22.02706147,233.69,233.54,2.0894]
[1732121151623,2.1377,233.65,233.54,2.0894]
[1732121152025,22.02706147,233.69,233.54,2.0894]
[1732121152333,3.5,233.69,233.54,20.61646147]
[1732121152536,3.5,233.69,233.55,5.64135525]
[1732121153032,2.1374,233.68,233.62,2.1379]
[1732121153230,22.02706147,233.69,233.51,5.85064371]
[1732121153433,22.02706147,233.69,233.52,28.33504422]
[1732121153434,6.3506,233.68,233.52,28.33504422]
[1732121153632,6.3506,233.68,233.55,2.1385]
[1732121154626,2.138,233.61,233.55,2.1385]
[1732121156035,2.138,233.62,233.56,2.1385]
[1732121156427,6.3506,233.68,233.51,23.6057443]
[1732121156629,2.1377,233.65,233.55,2.1386]
[1732121156832,6.3506,233.68,233.51,23.6057443]
[1732121157031,6.3506,233.68,233.56,2.1385]
[1732121157236,6.3506,233.68,233.52,5.85064371]
[1732121157439,6.3506,233.68,233.52,10.57894491]
[1732121157737,6.3506,233.68,233.53,10.57894491]
[1732121157738,2.1379,233.63,233.53,10.57894491]
[1732121157932,6.3506,233.68,233.53,5.85064371]
[1732121158130,6.3506,233.68,233.57,2.1384]
[1732121158329,2.1379,233.63,233.57,2.1384]
[1732121158635,6.3506,233.68,233.5,7.91404371]
[1732121158835,18.52706147,233.65,233.5,7.91404371]
[1732121159237,2.138,233.61,233.55,2.1386]
[1732121159442,2.138,233.61,233.5,7.91404371]
[1732121159635,2.138,233.61,233.51,4.72838716]
[1732121159831,2.138,233.61,233.5,30.39753146]
[1732121160038,2.138,233.61,233.55,2.1385]
[1732121160743,2.138,233.61,233.56,2.1385]
[1732121161040,6.3506,233.68,233.5,26.44110518]
[1732121161041,6.3506,233.68,233.51,5.85064371]
[1732121161341,6.3506,233.68,233.5,5.85064371]
[1732121161542,2.1378,233.64,233.51,28.33357054]
[1732121161742,2.1378,233.64,233.59,2.1382]
[1732121161944,2.1378,233.64,233.52,2.1476]
[1732121162134,2.1375,233.67,233.52,49.00791432]
[1732121162337,3.5,233.73,233.56,18.52706147]
[1732121162634,2.1372,233.7,233.6,18.52706147]
[1732121162836,6.2137,233.77,233.6,18.52706147]
[1732121163040,6.2137,233.77,233.64,18.52706147]
[1732121163239,8.3503,233.77,233.64,18.52706147]
[1732121163633,3.5,233.81,233.64,18.52706147]
[1732121163834,3.5,233.81,233.65,2.1476]
[1732121164338,3.5,233.82,233.68,18.52706147]
[1732121164845,6.2137,233.84,233.68,18.52706147]
[1732121165342,49.32706147,233.93,233.76,18.52706147]
[1732121165539,3.5,233.94,233.77,4.2662]
[1732121165741,2.0098,233.98,233.8,18.52706147]
[1732121165934,4.1445,233.98,233.89,2.1354]
[1732121166337,2.0098,233.98,233.84,18.52706147]
[1732121166842,2.1348,233.97,233.88,2.1355]
[1732121167041,2.1348,233.97,233.84,18.52706147]
[1732121167236,22.02706147,234.02,233.84,18.52706147]
[1732121167441,2.1344,234.01,233.84,18.52706147]
[1732121167846,3.5,234.02,233.84,18.52706147]
[1732121168043,22.02706147,234.02,233.83,3.5]
[1732121168435,2.1348,233.96,233.83,3.5]
[1732121168935,2.1348,233.96,233.85,2.1357]
[1732121169139,2.135,233.94,233.8,18.52706147]
[1732121169646,2.1354,233.9,233.78,2.027]
[1732121170444,2.1354,233.9,233.82,2.1361]
[1732121171350,4.1641,233.97,233.79,18.52706147]
[1732121171645,4.1641,233.97,233.83,18.52706147]
[1732121171841,2.1346,233.99,233.88,2.1355]
[1732121172048,2.1346,233.99,233.83,24.20637935]
[1732121172243,40.0,234.0,233.87,18.52706147]
[1732121172442,40.0,234.0,233.88,2.1254]
[1732121172443,42.1345,234.0,233.88,2.1254]
[1732121172948,2.1349,233.95,233.86,2.1357]
[1732121173249,3.5,233.99,233.82,18.52706147]
[1732121174347,2.135,233.95,233.87,2.1356]
[1732121174747,2.135,233.95,233.82,18.52706147]
[1732121174748,3.5,233.99,233.82,18.52706147]
[1732121175745,2.1349,233.96,233.87,2.1356]
[1732121176051,3.5,233.99,233.87,2.1356]
[1732121176643,3.5,233.99,233.82,18.52706147]
[1732121176849,18.52706147,233.97,233.78,18.52706147]
[1732121177354,2.1357,233.87,233.79,2.1363]
[1732121177546,2.0268,233.96,233.74,18.52706147]
[1732121177547,3.5,233.88,233.74,18.52706147]
[1732121177751,3.5,233.88,233.72,2.1556]
[1732121178253,3.5,233.88,233.69,2.1567]
[1732121178449,18.52706147,233.85,233.67,20.54686147]
[1732121178652,2.0268,233.84,233.63,18.52706147]
[1732121178957,2.1366,233.76,233.66,2.1374]
[1732121179147,3.5,233.75,233.62,4.3026]
[1732121179550,3.5,233.75,233.63,18.52706147]
[1732121179751,2.044,233.8,233.63,18.52706147]
[1732121179954,2.1364,233.78,233.67,2.1373]
[1732121180151,3.5,233.79,233.63,18.52706147]
[1732121180753,2.1364,233.77,233.69,2.1372]
[1732121181048,3.5,233.79,233.63,18.52706147]
[1732121181247,2.1368,233.74,233.66,2.1374]
[1732121181447,3.5,233.79,233.61,2.0198]
[1732121181448,18.52706147,233.77,233.61,2.0198]
[1732121181657,3.5,233.79,233.55,22.73116147]
[1732121181658,18.52706147,233.73,233.55,22.73116147]
[1732121181954,2.1375,233.66,233.58,2.1382]
[1732121182153,2.1869,233.72,233.55,22.73116147]
[1732121182154,3.5,233.65,233.55,22.73116147]
[1732121182361,3.5,233.65,233.53,2.1534]
[1732121183950,2.1381,233.6,233.49,2.1391]
[1732121184154,22.02706147,233.65,233.49,2.1391]
[1732121184552,18.52706147,233.61,233.47,2.1393]
[1732121184757,18.52706147,233.61,233.43,20.61346147]
[1732121185056,2.1384,233.58,233.5,2.139]
[1732121185369,3.5,233.63,233.47,18.52706147]
[1732121185662,3.5,233.63,233.51,18.52706147]
[1732121185851,3.5,233.66,233.51,18.52706147]
[1732121186257,18.52706147,233.65,233.47,18.52706147]
[1732121186661,2.1382,233.59,233.5,2.139]
[1732121187554,2.1382,233.59,233.47,18.52706147]
[1732121187555,18.52706147,233.65,233.47,18.52706147]
[1732121188163,2.1383,233.58,233.47,18.52706147]
[1732121188460,3.5,233.58,233.47,18.52706147]
[1732121189058,3.5,233.58,233.5,2.139]
[1732121189261,3.5,233.58,233.47,18.52706147]
[1732121189462,3.5,233.58,233.43,20.61346147]
[1732121189657,2.1386,233.55,233.47,2.1393]
[1732121190160,2.1386,233.55,233.43,20.61346147]
[1732121190161,3.5,233.58,233.43,20.61346147]
[1732121190364,18.52706147,233.65,233.47,18.52706147]
[1732121190663,3.5,233.64,233.47,18.52706147]
[1732121191068,3.5,233.64,233.53,2.1387]
[1732121191356,3.5,233.64,233.47,18.52706147]
[1732121191562,2.1383,233.58,233.5,2.139]
[1732121191863,2.1383,233.58,233.44,2.1101]
[1732121191864,3.5,233.64,233.44,2.1101]
[1732121192263,2.1385,233.57,233.49,2.1391]
[1732121193060,3.5,233.58,233.52,2.1388]
[1732121193252,3.5,233.58,233.44,2.1101]
[1732121193657,2.1385,233.56,233.44,2.1101]
[1732121193855,3.5,233.58,233.44,2.1101]
[1732121194255,2.1386,233.55,233.48,2.1392]
[1732121194559,3.5,233.58,233.48,2.1392]
[1732121195158,2.1386,233.55,233.48,2.1392]
[1732121195664,3.5,233.58,233.49,2.1391]
[1732121196058,2.1386,233.55,233.48,2.1392]
[1732121196659,3.5,233.58,233.44,2.1101]
[1732121197055,3.5,233.62,233.44,2.1101]
[1732121197258,2.1383,233.58,233.44,2.1101]
[1732121197464,3.5,233.62,233.44,2.1101]
[1732121197859,2.138,233.61,233.54,2.1387]
[1732121198461,2.1381,233.6,233.46,2.10459878]
[1732121198661,3.5,233.62,233.44,2.1101]
[1732121198966,2.1382,233.59,233.52,2.1388]
[1732121199163,3.5,233.62,233.45,2.15678598]
[1732121199466,3.5,233.62,233.52,2.1388]
[1732121199467,2.1382,233.59,233.52,2.1388]
[1732121199661,3.5,233.62,233.52,2.1388]
[1732121199861,3.5,233.62,233.44,2.1101]
[1732121200266,18.52706147,233.61,233.4,2.1749]
[1732121200462,3.5,233.62,233.4,2.1749]
[1732121200463,18.52706147,233.57,233.4,2.1749]
[1732121200662,4.1392,233.56,233.41,2.1398]
[1732121201358,4.1392,233.56,233.39,2.14]
[1732121201359,18.52706147,233.53,233.39,2.14]
[1732121201564,3.5,233.52,233.39,2.14]
[1732121201763,2.1395,233.45,233.39,2.14]
[1732121202158,2.1395,233.45,233.38,2.1401]
[1732121202768,2.1394,233.47,233.36,4.3078]
[1732121203564,2.1394,233.47,233.4,2.1399]
[1732121204265,3.5,233.52,233.36,4.3078]
[1732121205561,3.5,233.52,233.4,2.1399]
[1732121206169,18.52706147,233.49,233.36,2.1402]
[1732121206667,3.5,233.52,233.33,2.0409]
[1732121206668,2.1393,233.47,233.4,2.1399]
[1732121206968,3.5,233.52,233.33,2.0409]
[1732121207365,2.1395,233.46,233.33,2.0409]
[1732121207768,3.5,233.52,233.33,2.0409]
[1732121208071,3.5,233.52,233.38,2.1401]
[1732121208468,4.1392,233.56,233.38,18.52706147]
[1732121208670,3.5,233.55,233.38,18.52706147]
[1732121208868,2.1389,233.52,233.44,2.1396]
[1732121209171,3.5,233.55,233.44,2.1396]
[1732121209364,18.52706147,233.53,233.34,5.85064371]
[1732121209570,18.52706147,233.49,233.3,9.96174371]
[1732121209774,18.52706147,233.45,233.31,4.67600606]
[1732121210066,5.6311,233.44,233.27,2.0143]
[1732121210364,18.52706147,233.41,233.25,2.0569]
[1732121210566,18.52706147,233.41,233.26,2.1412]
[1732121210767,18.52706147,233.41,233.23,7.90964371]
[1732121210968,18.52706147,233.41,233.24,4.68035576]
[1732121211269,2.1407,233.32,233.25,2.1413]
[1732121211470,3.5,233.34,233.25,2.1413]
[1732121211666,3.5,233.34,233.24,5.85064371]
[1732121211874,18.52706147,233.33,233.22,5.85064371]
[1732121212069,18.52706147,233.33,233.2,23.6057443]
[1732121212070,2.1412,233.27,233.2,23.6057443]
[1732121212372,2.1516,233.33,233.2,23.6057443]
[1732121212568,2.1516,233.33,233.21,4.68778776]
[1732121212769,3.5,233.32,233.2,5.85064371]
[1732121213068,3.5,233.32,233.21,4.67801914]
[1732121213274,2.1411,233.28,233.21,10.52866285]
[1732121213474,3.5,233.32,233.2,23.6057443]
[1732121213672,3.5,233.32,233.21,4.67900387]
[1732121213870,3.5,233.32,233.22,10.52963337]
[1732121214073,3.5,233.32,233.22,5.85064371]
[1732121214274,3.5,233.32,233.21,23.6057443]
[1732121214569,18.52706147,233.48,233.3,46.80514971]
[1732121214767,4.1401,233.47,233.31,10.57050076]
[1732121214970,2.1401,233.39,233.32,2.1406]
[1732121215474,18.52706147,233.44,233.31,42.29284157]
[1732121215668,2.1402,233.37,233.31,5.89154808]
[1732121215973,3.5,233.38,233.29,5.89154808]
[1732121216173,2.1404,233.36,233.29,2.1409]
[1732121216374,3.5,233.38,233.29,5.89154808]
[1732121216575,3.5,233.38,233.3,4.68489988]
[1732121216773,2.1405,233.34,233.29,5.89154808]
[1732121216973,2.1405,233.34,233.28,5.89154808]
[1732121217178,2.1404,233.36,233.29,4.68509343]
[1732121217472,2.1404,233.36,233.28,5.89154808]
[1732121217473,3.5,233.38,233.28,5.89154808]
[1732121217674,3.5,233.38,233.29,4.68616812]
[1732121217878,2.1404,233.35,233.28,5.89154808]
[1732121218078,3.5,233.38,233.28,5.89154808]
[1732121218481,3.5,233.38,233.29,4.68543306]
[1732121218674,3.5,233.38,233.28,5.89154808]
[1732121218877,3.5,233.38,233.27,5.89154808]
[1732121219576,2.1399,233.41,233.29,23.5658112]
[1732121219879,3.5,233.43,233.32,5.89154808]
[1732121220179,3.5,233.43,233.28,72.27062457]
[1732121220579,3.5,233.43,233.37,2.1402]
[1732121220777,4.1401,233.47,233.31,18.52706147]
[1732121220978,18.52706147,233.49,233.32,4.1263]
[1732121220979,3.5,233.49,233.32,4.1263]
[1732121221175,5.6391,233.49,233.37,2.1402]
[1732121221374,2.1299,233.52,233.35,18.52706147]
[1732121221574,3.5,233.51,233.35,18.52706147]
[1732121221780,2.1391,233.49,233.42,5.89587729]
[1732121221982,3.5,233.51,233.43,4.68177289]
[1732121222176,2.1384,233.58,233.49,2.1391]
[1732121222374,2.1384,233.58,233.47,5.89587729]
[1732121222578,2.1384,233.58,233.49,5.89587729]
[1732121222786,18.52706147,233.64,233.56,2.1385]
[1732121222787,2.1378,233.64,233.56,2.1385]
[1732121222981,3.5,233.65,233.56,2.1385]
[1732121223181,0.21696,233.67,233.53,5.89587729]
[1732121223382,2.1376,233.66,233.57,2.1384]
[1732121223582,0.21696,233.67,233.54,23.58350918]
[1732121223781,0.21696,233.67,233.61,2.138]
[1732121224081,18.52706147,233.8,233.64,5.89587729]
[1732121224286,3.5,233.79,233.66,5.89587729]
[1732121224484,2.1365,233.78,233.67,12.70936598]
[1732121224684,3.5,233.79,233.68,10.57196598]
[1732121224887,18.52706147,233.84,233.69,10.57196598]
[1732121225182,3.5,233.86,233.7,10.57196598]
[1732121225382,3.5,233.86,233.7,5.89587729]
[1732121225681,18.52706147,233.89,233.69,17.68763189]
[1732121225682,18.52706147,233.89,233.72,23.58350918]
[1732121225887,3.5,233.87,233.73,10.56474673]
[1732121226183,3.5,233.87,233.75,2.1367]
[1732121226579,3.5,233.87,233.71,5.89587729]
[1732121226782,3.5,233.87,233.7,23.58350918]
[1732121226783,18.52706147,233.85,233.7,23.58350918]
[1732121226980,18.52706147,233.85,233.7,5.89587729]
[1732121227184,18.52706147,233.77,233.65,23.58350918]
[1732121227381,18.52706147,233.88,233.61,4.2163]
[1732121227382,30.15034506,233.75,233.61,5.89587729]
[1732121227587,30.15034506,233.75,233.58,5.89587729]
[1732121227588,3.48,233.74,233.58,5.89587729]
[1732121227788,3.48,233.74,233.58,10.55371304]
[1732121227990,3.48,233.74,233.58,4.65783575]
[1732121228290,3.48,233.74,233.59,10.55380086]
[1732121228587,3.48,233.74,233.61,2.138]
[1732121228791,3.48,233.74,233.57,5.89587729]
[1732121228982,3.48,233.74,233.58,38.18442235]
[1732121228983,2.1372,233.71,233.58,38.18442235]
[1732121229295,3.48,233.74,233.57,5.89587729]
[1732121229586,3.48,233.74,233.57,10.55039361]
[1732121229785,3.48,233.74,233.57,23.58350918]
[1732121230092,3.48,233.76,233.61,30.15034506]
[1732121230589,3.48,233.76,233.65,30.15034506]
[1732121231484,3.48,233.81,233.65,30.15034506]
[1732121231682,5.6162,233.81,233.7,2.1371]
[1732121232191,3.48,233.81,233.71,2.1371]
[1732121232886,30.15034506,233.91,233.69,30.15034506]
[1732121233089,3.48,233.86,233.7,2.1988]
[1732121233493,3.48,233.86,233.73,2.1369]
[1732121233691,3.48,233.86,233.66,4.42]